fUSD/lending_fUSD_20260610
["ID","MTS","AMOUNT","RATE_DAILY","PERIOD"]
[424688226,1781051445000,-500.0,0.00014321,2]
[424688227,1781051445000,-500.0,0.00014321,2]
[424688229,1781051445000,-500.0,0.00014321,2]
[424688233,1781051445000,-500.0,0.00014321,2]
[424688234,1781051445000,-500.0,0.00014321,2]
[424688232,1781051445000,-500.0,0.00014321,2]
[424688230,1781051445000,-500.0,0.00014321,2]
[424688231,1781051445000,-500.0,0.00014321,2]
[424688237,1781051445000,-500.0,0.00014321,2]
[424688238,1781051445000,-500.0,0.00014321,2]
[424688242,1781051445000,-500.0,0.00014321,2]
[424688239,1781051445000,-500.0,0.00014321,2]
[424688240,1781051445000,-500.0,0.00014321,2]
[424688241,1781051445000,-500.0,0.00014321,2]
[424688244,1781051445000,-500.0,0.00014321,2]
[424688236,1781051445000,-500.0,0.00014321,2]
[424688246,1781051445000,-500.0,0.00014321,2]
[424688245,1781051445000,-500.0,0.00014321,2]
[424688247,1781051445000,-500.0,0.00014321,2]
[424688201,1781051445000,-500.0,0.00014321,2]
[424688224,1781051445000,-500.0,0.00014321,2]
[424688225,1781051445000,-500.0,0.00014321,2]
[424688235,1781051445000,-500.0,0.00014321,2]
[424688217,1781051445000,-500.0,0.00014321,2]
[424688203,1781051445000,-500.0,0.00014321,2]
[424688221,1781051445000,-500.0,0.00014321,2]
[424688199,1781051445000,-500.0,0.00014321,2]
[424688204,1781051445000,-500.0,0.00014321,2]
[424688196,1781051445000,-500.0,0.00014321,2]
[424688202,1781051445000,-500.0,0.00014321,2]
[424688206,1781051445000,-500.0,0.00014321,2]
[424688208,1781051445000,-500.0,0.00014321,2]
[424688209,1781051445000,-500.0,0.00014321,2]
[424688207,1781051445000,-500.0,0.00014321,2]
[424688212,1781051445000,-500.0,0.00014321,2]
[424688205,1781051445000,-500.0,0.00014321,2]
[424688223,1781051445000,-500.0,0.00014321,2]
[424688214,1781051445000,-500.0,0.00014321,2]
[424688211,1781051445000,-500.0,0.00014321,2]
[424688210,1781051445000,-500.0,0.00014321,2]
[424688216,1781051445000,-500.0,0.00014321,2]
[424688215,1781051445000,-500.0,0.00014321,2]
[424688219,1781051445000,-500.0,0.00014321,2]
[424688222,1781051445000,-500.0,0.00014321,2]
[424688220,1781051445000,-500.0,0.00014321,2]
[424688213,1781051445000,-500.0,0.00014321,2]
[424688218,1781051445000,-500.0,0.00014321,2]
[424688284,1781051446000,-150.0,0.00014384,2]
[424688286,1781051446000,-150.0,0.00014387,2]
[424688279,1781051446000,-2830.36,0.00014371,2]
[424688280,1781051446000,-200.0,0.00014371,2]
[424688275,1781051446000,-480.81720128,0.00014366,2]
[424688277,1781051446000,-150.0,0.00014367,2]
[424688278,1781051446000,-350.0,0.00014371,2]
[424688273,1781051446000,-480.81720128,0.00014351,2]
[424688282,1781051446000,-150.0,0.0001438,2]
[424688281,1781051446000,-150.0,0.00014372,2]
[424688285,1781051446000,-150.0,0.00014387,2]
[424688297,1781051446000,-150.0,0.00014415,2]
[424688288,1781051446000,-480.81720128,0.00014396,2]
[424688287,1781051446000,-150.0,0.00014387,2]
[424688289,1781051446000,-150.0,0.00014397,2]
[424688290,1781051446000,-150.0,0.000144,2]
[424688294,1781051446000,-2042.04998315,0.00014411,2]
[424688291,1781051446000,-150.0,0.00014407,2]
[424688295,1781051446000,-270.31449947,0.00014411,2]
[424688292,1781051446000,-12655.49869031,0.00014409,2]
[424688296,1781051446000,-480.81720128,0.00014411,2]
[424688276,1781051446000,-150.0,0.00014367,2]
[424688283,1781051446000,-480.81720128,0.00014381,2]
[424688272,1781051446000,-150.0,0.00014348,2]
[424688255,1781051446000,-500.0,0.00014321,2]
[424688271,1781051446000,-150.0,0.00014347,2]
[424688293,1781051446000,-4655.18774522,0.0001441,2]
[424688254,1781051446000,-500.0,0.00014321,2]
[424688249,1781051446000,-500.0,0.00014321,2]
[424688250,1781051446000,-500.0,0.00014321,2]
[424688252,1781051446000,-500.0,0.00014321,2]
[424688251,1781051446000,-500.0,0.00014321,2]
[424688248,1781051446000,-500.0,0.00014321,2]
[424688257,1781051446000,-500.0,0.00014321,2]
[424688256,1781051446000,-500.0,0.00014321,2]
[424688258,1781051446000,-500.0,0.00014321,2]
[424688274,1781051446000,-150.0,0.00014351,2]
[424688259,1781051446000,-500.0,0.00014321,2]
[424688260,1781051446000,-500.0,0.00014321,2]
[424688264,1781051446000,-150.0,0.00014327,2]
[424688266,1781051446000,-1684.75920606,0.00014328,2]
[424688265,1781051446000,-1931.36032789,0.00014328,2]
[424688261,1781051446000,-500.0,0.00014321,2]
[424688263,1781051446000,-150.0,0.00014323,2]
[424688269,1781051446000,-150.0,0.00014344,2]
[424688267,1781051446000,-150.0,0.00014335,2]
[424688268,1781051446000,-480.81720128,0.00014335,2]
[424688270,1781051446000,-150.0,0.00014344,2]
[424688262,1781051446000,-500.0,0.00014321,2]
[424688298,1781051446000,-150.0,0.00014416,2]
[424688310,1781051446000,-480.81720128,0.00014456,2]
[424688300,1781051446000,-150.0,0.00014421,2]
[424688328,1781051446000,-480.81720128,0.00014502,2]
[424688331,1781051446000,-150.0,0.00014514,2]
[424688333,1781051446000,-1684.75920606,0.00014519,2]
[424688329,1781051446000,-12655.49869031,0.00014507,2]
[424688330,1781051446000,-150.0,0.00014507,2]
[424688332,1781051446000,-480.81720128,0.00014517,2]
[424688336,1781051446000,-150.0,0.00014527,2]
[424688337,1781051446000,-14794.04976963,0.00014529,2]
[424688335,1781051446000,-150.0,0.00014522,2]
[424688334,1781051446000,-150.0,0.0001452,2]
[424688323,1781051446000,-19222.27,0.00014497,2]
[424688339,1781051446000,-480.81720128,0.00014532,2]
[424688348,1781051446000,-150.0,0.00014563,2]
[424688346,1781051446000,-150.0,0.00014558,2]
[424688343,1781051446000,-150.0,0.00014547,2]
[424688345,1781051446000,-150.0,0.00014558,2]
[424688340,1781051446000,-150.0,0.00014537,2]
[424688341,1781051446000,-150.0,0.00014544,2]
[424688342,1781051446000,-150.0,0.00014546,2]
[424688347,1781051446000,-480.81720128,0.00014562,2]
[424688349,1781051446000,-150.0,0.00014567,2]
[424688299,1781051446000,-14794.04976963,0.00014419,2]
[424688338,1781051446000,-150.0,0.0001453,2]
[424688325,1781051446000,-1742.98,0.00014497,2]
[424688344,1781051446000,-480.81720128,0.00014547,2]
[424688326,1781051446000,-17543.16,0.00014497,2]
[424688324,1781051446000,-1206.46,0.00014497,2]
[424688302,1781051446000,-150.0,0.00014427,2]
[424688301,1781051446000,-480.81720128,0.00014426,2]
[424688304,1781051446000,-480.81720128,0.00014441,2]
[424688307,1781051446000,-150.0,0.00014449,2]
[424688305,1781051446000,-150.0,0.00014446,2]
[424688306,1781051446000,-150.0,0.00014447,2]
[424688350,1781051446000,-150.0,0.00014569,2]
[424688308,1781051446000,-150.0,0.00014451,2]
[424688314,1781051446000,-150.0,0.0001447,2]
[424688311,1781051446000,-150.0,0.00014462,2]
[424688303,1781051446000,-150.0,0.00014432,2]
[424688309,1781051446000,-502.873,0.00014452,2]
[424688313,1781051446000,-150.0,0.00014467,2]
[424688327,1781051446000,-150.0,0.00014498,2]
[424688319,1781051446000,-150.0,0.00014487,2]
[424688320,1781051446000,-350.0,0.00014491,2]
[424688322,1781051446000,-461.94,0.00014497,2]
[424688316,1781051446000,-150.0,0.00014481,2]
[424688312,1781051446000,-150.0,0.00014465,2]
[424688315,1781051446000,-480.81720128,0.00014472,2]
[424688317,1781051446000,-150.0,0.00014487,2]
[424688318,1781051446000,-480.81720128,0.00014487,2]
[424688321,1781051446000,-150.0,0.00014495,2]
[424688376,1781051447000,-150.0,0.00014642,2]
[424688378,1781051447000,-150.0,0.00014647,2]
[424688386,1781051447000,-480.81720128,0.00014668,2]
[424688379,1781051447000,-1370.563681,0.00014647,2]
[424688380,1781051447000,-480.81720128,0.00014653,2]
[424688382,1781051447000,-2620.313,0.00014661,2]
[424688384,1781051447000,-150.0,0.00014667,2]
[424688381,1781051447000,-150.0,0.00014661,2]
[424688383,1781051447000,-150.0,0.00014665,2]
[424688391,1781051447000,-150.0,0.00014687,2]
[424688387,1781051447000,-150.0,0.00014677,2]
[424688392,1781051447000,-150.0,0.00014691,2]
[424688389,1781051447000,-150.0,0.00014687,2]
[424688390,1781051447000,-150.0,0.00014687,2]
[424688395,1781051447000,-480.81720128,0.00014699,2]
[424688388,1781051447000,-480.81720128,0.00014684,2]
[424688393,1781051447000,-150.0,0.00014693,2]
[424688375,1781051447000,-14794.04976963,0.0001464,2]
[424688394,1781051447000,-2000.0,0.00014698,2]
[424688385,1781051447000,-150.0,0.00014667,2]
[424688377,1781051447000,-150.0,0.00014644,2]
[424688362,1781051447000,-480.81720128,0.00014608,2]
[424688373,1781051447000,-150.0,0.00014629,2]
[424688396,1781051447000,-150.0,0.00014701,2]
[424688351,1781051447000,-4655.18774522,0.00014573,2]
[424688358,1781051447000,-150.0,0.00014595,2]
[424688353,1781051447000,-150.0,0.00014579,2]
[424688354,1781051447000,-150.0,0.00014587,2]
[424688352,1781051447000,-480.81720128,0.00014578,2]
[424688357,1781051447000,-150.0,0.00014594,2]
[424688355,1781051447000,-480.81720128,0.00014593,2]
[424688356,1781051447000,-150.0,0.00014593,2]
[424688374,1781051447000,-480.81720128,0.00014638,2]
[424688360,1781051447000,-12655.49869031,0.00014604,2]
[424688364,1781051447000,-150.0,0.00014612,2]
[424688359,1781051447000,-5482.254725,0.000146,2]
[424688366,1781051447000,-1020.99,0.00014617,2]
[424688363,1781051447000,-150.0,0.00014612,2]
[424688365,1781051447000,-191.864,0.00014612,2]
[424688367,1781051447000,-150.0,0.00014618,2]
[424688368,1781051447000,-480.81720128,0.00014623,2]
[424688370,1781051447000,-150.0,0.00014627,2]
[424688372,1781051447000,-150.0,0.00014628,2]
[424688361,1781051447000,-150.0,0.00014607,2]
[424688403,1781051447000,-150.0,0.00014727,2]
[424688397,1781051447000,-12655.49869031,0.00014702,2]
[424688399,1781051447000,-150.0,0.00014709,2]
[424688429,1781051447000,-480.81720128,0.00014805,2]
[424688430,1781051447000,-150.0,0.00014806,2]
[424688425,1781051447000,-12655.49869031,0.00014799,2]
[424688428,1781051447000,-2368.13994406,0.000148,2]
[424688426,1781051447000,-687.3,0.000148,2]
[424688431,1781051447000,-150.0,0.00014807,2]
[424688427,1781051447000,-350.0,0.000148,2]
[424688424,1781051447000,-150.0,0.00014791,2]
[424688436,1781051447000,-150.0,0.00014823,2]
[424688438,1781051447000,-480.81720128,0.00014835,2]
[424688437,1781051447000,-150.0,0.00014826,2]
[424688441,1781051447000,-150.0,0.0001484,2]
[424688440,1781051447000,-150.0,0.00014839,2]
[424688433,1781051447000,-150.0,0.00014814,2]
[424688434,1781051447000,-350.0,0.00014819,2]
[424688435,1781051447000,-480.81720128,0.0001482,2]
[424688439,1781051447000,-150.0,0.00014836,2]
[424688442,1781051447000,-150.0,0.00014844,2]
[424688443,1781051447000,-150.0,0.00014846,2]
[424688423,1781051447000,-150.0,0.0001479,2]
[424688415,1781051447000,-150.0,0.00014765,2]
[424688432,1781051447000,-150.0,0.00014808,2]
[424688421,1781051447000,-150.0,0.00014786,2]
[424688422,1781051447000,-480.81720128,0.0001479,2]
[424688398,1781051447000,-150.0,0.00014707,2]
[424688400,1781051447000,-480.81720128,0.00014714,2]
[424688402,1781051447000,-150.0,0.00014726,2]
[424688404,1781051447000,-480.81720128,0.00014729,2]
[424688401,1781051447000,-150.0,0.00014716,2]
[424688406,1781051447000,-4655.18774522,0.00014737,2]
[424688413,1781051447000,-480.81720128,0.00014759,2]
[424688407,1781051447000,-150.0,0.00014741,2]
[424688405,1781051447000,-150.0,0.00014737,2]
[424688412,1781051447000,-150.0,0.00014758,2]
[424688417,1781051447000,-150.0,0.00014772,2]
[424688409,1781051447000,-480.81720128,0.00014744,2]
[424688410,1781051447000,-150.0,0.00014747,2]
[424688411,1781051447000,-14794.04976963,0.0001475,2]
[424688414,1781051447000,-150.0,0.00014762,2]
[424688419,1781051447000,-480.81720128,0.00014774,2]
[424688420,1781051447000,-150.0,0.00014775,2]
[424688418,1781051447000,-150.0,0.00014772,2]
[424688408,1781051447000,-150.0,0.00014742,2]
[424688416,1781051447000,-150.0,0.00014767,2]
[424688481,1781051448000,-150.0,0.00014906,2]
[424688479,1781051448000,-270.31449947,0.000149,2]
[424688478,1781051448000,-2042.04998315,0.000149,2]
[424688475,1781051448000,-2588.54,0.000149,2]
[424688471,1781051448000,-2588.53,0.000149,2]
[424688470,1781051448000,-1931.36032789,0.000149,2]
[424688469,1781051448000,-10354.12,0.000149,2]
[424688473,1781051448000,-2588.53,0.000149,2]
[424688474,1781051448000,-2588.53,0.000149,2]
[424688477,1781051448000,-21646.75557535,0.000149,3]
[424688486,1781051448000,-150.0,0.00014915,2]
[424688482,1781051448000,-291.57897667,0.00014908,2]
[424688480,1781051448000,-150.0,0.00014905,2]
[424688483,1781051448000,-480.81720128,0.00014911,2]
[424688485,1781051448000,-150.0,0.00014913,2]
[424688487,1781051448000,-150.0,0.00014921,2]
[424688484,1781051448000,-150.0,0.00014911,2]
[424688488,1781051448000,-480.81720128,0.00014926,2]
[424688492,1781051448000,-480.81720128,0.00014941,2]
[424688489,1781051448000,-150.0,0.00014926,2]
[424688472,1781051448000,-2588.53,0.000149,2]
[424688476,1781051448000,-4655.18774522,0.000149,2]
[424688468,1781051448000,-10354.12,0.000149,2]
[424688445,1781051448000,-237316.51759758,0.0001485,2]
[424688463,1781051448000,-25000.0,0.000149,3]
[424688447,1781051448000,-150.0,0.00014856,2]
[424688490,1781051448000,-150.0,0.00014937,2]
[424688446,1781051448000,-480.81720128,0.0001485,2]
[424688444,1781051448000,-500.0,0.00014849,2]
[424688448,1781051448000,-150.0,0.00014863,2]
[424688452,1781051448000,-150.0,0.00014879,2]
[424688451,1781051448000,-150.0,0.00014872,2]
[424688449,1781051448000,-480.81720128,0.00014865,2]
[424688450,1781051448000,-150.0,0.00014866,2]
[424688453,1781051448000,-163.0,0.0001488,2]
[424688467,1781051448000,-10354.12,0.000149,2]
[424688454,1781051448000,-163.0,0.0001488,2]
[424688458,1781051448000,-150.0,0.00014888,2]
[424688457,1781051448000,-150.0,0.00014886,2]
[424688459,1781051448000,-150.0,0.00014889,2]
[424688460,1781051448000,-25000.0,0.00014891,3]
[424688456,1781051448000,-25000.0,0.00014882,3]
[424688462,1781051448000,-500.0,0.00014899,2]
[424688461,1781051448000,-480.81720128,0.00014895,2]
[424688464,1781051448000,-10794.88816786,0.000149,2]
[424688466,1781051448000,-10354.12,0.000149,2]
[424688465,1781051448000,-10354.12,0.000149,2]
[424688455,1781051448000,-480.81720128,0.0001488,2]
[424688493,1781051448000,-150.0,0.00014946,2]
[424688533,1781051448000,-179.43010993,0.00014986,2]
[424688494,1781051448000,-150.0,0.00014951,2]
[424688519,1781051448000,-500.0,0.00014986,2]
[424688516,1781051448000,-500.0,0.00014986,2]
[424688523,1781051448000,-256.9210278,0.00014986,2]
[424688531,1781051448000,-185.84207243,0.00014986,2]
[424688529,1781051448000,-154.16136238,0.00014986,2]
[424688528,1781051448000,-251.96802587,0.00014986,2]
[424688526,1781051448000,-151.0,0.00014986,2]
[424688527,1781051448000,-151.0,0.00014986,2]
[424688525,1781051448000,-177.03313756,0.00014986,2]
[424688530,1781051448000,-281.0532509,0.00014986,2]
[424688517,1781051448000,-500.0,0.00014986,2]
[424688532,1781051448000,-480.81720128,0.00014986,2]
[424688536,1781051448000,-2000.0,0.0001499,2]
[424688534,1781051448000,-117901.96802524,0.00014989,2]
[424688535,1781051448000,-250.0,0.0001499,2]
[424688537,1781051448000,-3250.71389883,0.0001499,2]
[424688539,1781051448000,-2671.94635063,0.00014999,2]
[424688538,1781051448000,-166.66,0.00014994,2]
[424688540,1781051448000,-300.0,0.00014999,2]
[424688542,1781051448000,-666.0,0.00014999,2]
[424688541,1781051448000,-300.0,0.00014999,2]
[424688491,1781051448000,-150.0,0.00014937,2]
[424688543,1781051448000,-300.0,0.00014999,2]
[424688518,1781051448000,-500.0,0.00014986,2]
[424688524,1781051448000,-206.50834213,0.00014986,2]
[424688521,1781051448000,-500.0,0.00014986,2]
[424688495,1781051448000,-150.0,0.00014954,2]
[424688497,1781051448000,-150.0,0.00014962,2]
[424688501,1781051448000,-198.35,0.00014985,2]
[424688496,1781051448000,-480.81720128,0.00014956,2]
[424688500,1781051448000,-480.81720128,0.00014971,2]
[424688498,1781051448000,-150.0,0.00014966,2]
[424688502,1781051448000,-150.0,0.00014985,2]
[424688515,1781051448000,-500.0,0.00014986,2]
[424688503,1781051448000,-500.0,0.00014986,2]
[424688504,1781051448000,-500.0,0.00014986,2]
[424688505,1781051448000,-500.0,0.00014986,2]
[424688499,1781051448000,-150.0,0.0001497,2]
[424688512,1781051448000,-500.0,0.00014986,2]
[424688520,1781051448000,-500.0,0.00014986,2]
[424688506,1781051448000,-500.0,0.00014986,2]
[424688522,1781051448000,-500.0,0.00014986,2]
[424688513,1781051448000,-500.0,0.00014986,2]
[424688514,1781051448000,-500.0,0.00014986,2]
[424688507,1781051448000,-500.0,0.00014986,2]
[424688509,1781051448000,-500.0,0.00014986,2]
[424688511,1781051448000,-500.0,0.00014986,2]
[424688510,1781051448000,-500.0,0.00014986,2]
[424688508,1781051448000,-500.0,0.00014986,2]
[424688546,1781051449000,-15483656.2100043,0.00015,2]
[424688545,1781051449000,-1000.0,0.00015,2]
[424688544,1781051449000,-151.0,0.00015,2]
[424688548,1781051450000,-1140032.29246558,0.00015,2]
[424688549,1781051450000,-791.1615828,0.00015,2]
[424688547,1781051450000,-1684.75920606,0.00014709,2]
[424688551,1781051451000,-4879.44990815,0.00013524,2]
[424688550,1781051451000,-981.19159346,0.00013524,2]
[424688552,1781051451000,-385.95636754,0.00013524,2]
[424688557,1781051451000,-989.0,0.00013524,2]
[424688555,1781051451000,-1929.90344,0.00013524,2]
[424688554,1781051451000,-6288.89999998,0.00013524,2]
[424688556,1781051451000,-1043.1356,0.00013524,2]
[424688553,1781051451000,-3197.48163148,0.00013524,2]
[424688558,1781051614000,1000.0,0.0002871,120]
[424688559,1781051692000,160.73,0.00027565,120]
[424688561,1781051708000,275.43580798,0.00029836,120]
[424688560,1781051708000,150.0,0.00029836,120]
[424688562,1781052004000,500.0,0.00030137,120]
[424688563,1781052215000,1000.0,0.00028806,120]
[424688568,1781052632000,-210.858,0.000111,2]
[424688569,1781052632000,-204.61661846,0.000111,2]
[424688571,1781052632000,-805.29584513,0.000112,2]
[424688574,1781052632000,-386.70000265,0.000112,2]
[424688577,1781052632000,-8402.9572331,0.00012,2]
[424688570,1781052632000,-1174.08547487,0.000112,2]
[424688578,1781052632000,-4016.76444638,0.00012,2]
[424688576,1781052632000,-150.0,0.00011999,2]
[424688575,1781052632000,-265.23444171,0.000112,2]
[424688579,1781052632000,-1053.71656762,0.00012,2]
[424688572,1781052632000,-258.89793607,0.000112,2]
[424688573,1781052632000,-177.57602551,0.000112,2]
[424688627,1781052638000,-454.0,0.00013372,2]
[424688626,1781052638000,-452.0,0.00013372,2]
[424688624,1781052638000,-166.66,0.0001332,2]
[424688631,1781052638000,-441.0,0.00013372,2]
[424688619,1781052638000,-166.66,0.00012812,2]
[424688630,1781052638000,-457.0,0.00013372,2]
[424688629,1781052638000,-443.0,0.00013372,2]
[424688623,1781052638000,-166.66,0.00013097,2]
[424688628,1781052638000,-453.0,0.00013372,2]
[424688632,1781052638000,-449.0,0.00013372,2]
[424688625,1781052638000,-450.0,0.00013372,2]
[424688622,1781052638000,-255.0,0.00013079,2]
[424688615,1781052638000,-150.0,0.0001249,2]
[424688616,1781052638000,-856.57,0.00012496,2]
[424688606,1781052638000,-3041.07,0.0001206,2]
[424688617,1781052638000,-166.66,0.00012558,2]
[424688614,1781052638000,-240.53,0.00012474,3]
[424688618,1781052638000,-160.73,0.0001277,2]
[424688620,1781052638000,-2000.0,0.00013,2]
[424688621,1781052638000,-166.66,0.00013066,2]
[424688611,1781052638000,-166.66,0.00012305,2]
[424688612,1781052638000,-987.4,0.00012375,2]
[424688610,1781052638000,-2000.0,0.00012171,2]
[424688604,1781052638000,-36526.5617529,0.00012,2]
[424688608,1781052638000,-613.04,0.00012092,2]
[424688607,1781052638000,-150.0,0.00012079,2]
[424688609,1781052638000,-1000.0,0.00012125,2]
[424688605,1781052638000,-166.66,0.00012051,2]
[424688613,1781052638000,-500.0,0.00012424,2]
[424688634,1781052638000,-1287.57355194,0.00013425,2]
[424688639,1781052638000,-150.0,0.00013488,2]
[424688636,1781052638000,-150.0,0.00013488,2]
[424688635,1781052638000,-150.0,0.00013488,2]
[424688664,1781052638000,-443.0,0.00013524,2]
[424688660,1781052638000,-150.0,0.00013523,2]
[424688659,1781052638000,-500.0,0.00013523,2]
[424688657,1781052638000,-500.0,0.00013523,2]
[424688658,1781052638000,-500.0,0.00013523,2]
[424688655,1781052638000,-500.0,0.00013523,2]
[424688670,1781052638000,-448.0,0.00013524,2]
[424688668,1781052638000,-447.0,0.00013524,2]
[424688666,1781052638000,-441.0,0.00013524,2]
[424688656,1781052638000,-500.0,0.00013523,2]
[424688649,1781052638000,-337.40308297,0.00013503,2]
[424688651,1781052638000,-150.0,0.00013516,2]
[424688652,1781052638000,-337.40308297,0.00013518,2]
[424688662,1781052638000,-457.0,0.00013524,2]
[424688654,1781052638000,-500.0,0.00013523,2]
[424688645,1781052638000,-457.0,0.00013499,2]
[424688637,1781052638000,-150.0,0.00013488,2]
[424688633,1781052638000,-19442.3089408,0.00013425,2]
[424688640,1781052638000,-150.0,0.00013488,2]
[424688643,1781052638000,-443.0,0.00013499,2]
[424688641,1781052638000,-150.0,0.00013488,2]
[424688638,1781052638000,-150.0,0.00013488,2]
[424688644,1781052638000,-445.0,0.00013499,2]
[424688646,1781052638000,-451.0,0.00013499,2]
[424688647,1781052638000,-448.0,0.00013499,2]
[424688648,1781052638000,-159.0,0.000135,2]
[424688653,1781052638000,-1076.45687075,0.00013523,3]
[424688642,1781052638000,-337.40308297,0.00013488,2]
[424688650,1781052638000,-150.0,0.0001351,2]
[424688743,1781052639000,-337.40308297,0.00013624,2]
[424688755,1781052639000,-166.66,0.00013637,2]
[424688757,1781052639000,-337.40308297,0.00013639,2]
[424688736,1781052639000,-150.0,0.00013603,2]
[424688732,1781052639000,-150.0,0.00013595,2]
[424688734,1781052639000,-150.0,0.00013601,2]
[424688729,1781052639000,-150.0,0.00013595,2]
[424688759,1781052639000,-150.0,0.00013647,2]
[424688727,1781052639000,-337.40308297,0.00013594,2]
[424688741,1781052639000,-150.0,0.00013624,2]
[424688745,1781052639000,-566.08,0.00013625,2]
[424688771,1781052639000,-150.0,0.00013675,2]
[424688748,1781052639000,-150.0,0.00013628,2]
[424688750,1781052639000,-150.0,0.0001363,2]
[424688763,1781052639000,-150.0,0.00013661,2]
[424688765,1781052639000,-150.0,0.00013666,2]
[424688769,1781052639000,-337.40308297,0.00013669,2]
[424688776,1781052639000,-150.0,0.00013689,2]
[424688773,1781052639000,-337.40308297,0.00013684,2]
[424688782,1781052639000,-500.0,0.00013698,2]
[424688767,1781052639000,-150.0,0.00013669,2]
[424688739,1781052639000,-337.40308297,0.00013609,2]
[424688761,1781052639000,-337.40308297,0.00013654,2]
[424688725,1781052639000,-19442.30894076,0.00013589,2]
[424688688,1781052639000,-446.0,0.00013524,2]
[424688723,1781052639000,-150.0,0.00013581,2]
[424688674,1781052639000,-454.0,0.00013524,2]
[424688676,1781052639000,-449.0,0.00013524,2]
[424688681,1781052639000,-445.0,0.00013524,2]
[424688679,1781052639000,-444.0,0.00013524,2]
[424688692,1781052639000,-449.0,0.00013524,2]
[424688694,1781052639000,-451.0,0.00013524,2]
[424688672,1781052639000,-454.0,0.00013524,2]
[424688686,1781052639000,-457.0,0.00013524,2]
[424688683,1781052639000,-453.0,0.00013524,2]
[424688778,1781052639000,-150.0,0.00013692,2]
[424688690,1781052639000,-452.0,0.00013524,2]
[424688698,1781052639000,-442.0,0.00013524,2]
[424688700,1781052639000,-150.0,0.00013533,2]
[424688702,1781052639000,-337.40308297,0.00013533,2]
[424688704,1781052639000,-150.0,0.00013535,2]
[424688706,1781052639000,-150.0,0.00013545,2]
[424688716,1781052639000,-150.0,0.00013574,2]
[424688696,1781052639000,-458.0,0.00013524,2]
[424688712,1781052639000,-150.0,0.00013559,2]
[424688710,1781052639000,-150.0,0.00013556,2]
[424688708,1781052639000,-337.40308297,0.00013548,2]
[424688719,1781052639000,-150.0,0.00013578,2]
[424688714,1781052639000,-337.40308297,0.00013563,2]
[424688721,1781052639000,-337.40308297,0.00013578,2]
[424688787,1781052639000,-500.0,0.00013698,2]
[424688752,1781052639000,-150.0,0.00013632,2]
[424688785,1781052639000,-500.0,0.00013698,2]
[424688840,1781052639000,-19442.30894076,0.00013753,2]
[424688842,1781052639000,-150.0,0.0001376,2]
[424688835,1781052639000,-500.0,0.00013751,2]
[424688853,1781052639000,-150.0,0.00013776,2]
[424688858,1781052639000,-337.40308297,0.0001379,2]
[424688861,1781052639000,-150.0,0.00013805,2]
[424688863,1781052639000,-150.0,0.00013806,2]
[424688865,1781052639000,-337.40308297,0.00013806,2]
[424688856,1781052639000,-150.0,0.00013783,2]
[424688867,1781052639000,-150.0,0.00013809,2]
[424688876,1781052639000,-150.0,0.00013828,2]
[424688851,1781052639000,-337.40308297,0.00013775,2]
[424688879,1781052639000,-150.0,0.00013834,2]